[Event "Vastgota Open 2023"]
[Site "Skara stadshotell, Jarnvagsgatan 5, Skara, Sweden"]
[Date "2023.02.18"]
[Round "1.1"]
[White "Chatalbashev, Boris"]
[Black "Stolt, Hans-Olof"]
[Result "1-0"]
[TimeControl "15 minutes + 5 seconds per move from move one (Round 1 - 2) / 30 minutes + 10 seconds per move from move one (Round 3 - 9)"]
[WhiteTitle "GM"]
[WhiteFideId "2900440"]
[BlackFideId "1720368"]
[WhiteElo "2522"]
[BlackElo "1843"]

1. d4 {[%clk 00:15:06]} {[%emt 00:00:02]} e6 {[%clk 00:14:53]} {[%emt
00:00:17]} 2. c4 {[%clk 00:15:08]} {[%emt 00:00:03]} d5 {[%clk 00:14:56]}
{[%emt 00:00:03]} 3. Nc3 {[%clk 00:15:09]} {[%emt 00:00:03]} c6 {[%clk
00:14:57]} {[%emt 00:00:05]} 4. e4 {[%clk 00:15:00]} {[%emt 00:00:13]} Bb4
{[%clk 00:14:40]} {[%emt 00:00:23]} 5. e5 {[%clk 00:14:49]} {[%emt 00:00:16]}
Ne7 {[%clk 00:14:19]} {[%emt 00:00:26]} 6. Nf3 {[%clk 00:14:49]} {[%emt
00:00:04]} Nd7 {[%clk 00:14:15]} {[%emt 00:00:10]} 7. Qb3 {[%clk 00:14:27]}
{[%emt 00:00:27]} Bxc3+ {[%clk 00:14:08]} {[%emt 00:00:12]} 8. bxc3 {[%clk
00:14:28]} {[%emt 00:00:04]} c5 {[%clk 00:14:00]} {[%emt 00:00:13]} 9. cxd5
{[%clk 00:13:59]} {[%emt 00:00:33]} exd5 {[%clk 00:11:12]} {[%emt 00:02:54]} 10.
Bg5 {[%clk 00:13:17]} {[%emt 00:00:46]} Qb6 {[%clk 00:09:23]} {[%emt 00:01:55]}
11. Bb5 {[%clk 00:12:50]} {[%emt 00:00:31]} c4 {[%clk 00:06:49]} {[%emt
00:02:40]} 12. Qb4 {[%clk 00:11:09]} {[%emt 00:01:46]} Qe6 {[%clk 00:06:49]}
{[%emt 00:00:05]} 13. O-O {[%clk 00:10:54]} {[%emt 00:00:19]} h6 {[%clk
00:06:08]} {[%emt 00:00:47]} 14. Bh4 {[%clk 00:09:53]} {[%emt 00:01:06]} g5
{[%clk 00:03:42]} {[%emt 00:02:32]} 15. Bg3 {[%clk 00:09:51]} {[%emt 00:00:06]}
O-O {[%clk 00:03:45]} {[%emt 00:00:02]} 16. Ba4 {[%clk 00:08:43]} {[%emt
00:01:13]} Nc6 {[%clk 00:03:07]} {[%emt 00:00:44]} 17. Qb2 {[%clk 00:08:16]}
{[%emt 00:00:31]} Kh8 {[%clk 00:02:34]} {[%emt 00:00:38]} 18. Bc2 {[%clk
00:08:04]} {[%emt 00:00:17]} Rg8 {[%clk 00:02:36]} {[%emt 00:00:04]} 19. Rae1
{[%clk 00:07:21]} {[%emt 00:00:47]} Ne7 {[%clk 00:02:35]} {[%emt 00:00:07]} 20.
h4 {[%clk 00:07:02]} {[%emt 00:00:23]} g4 {[%clk 00:02:34]} {[%emt 00:00:07]}
21. Nh2 {[%clk 00:06:28]} {[%emt 00:00:38]} h5 {[%clk 00:01:56]} {[%emt
00:00:43]} 22. f3 {[%clk 00:05:28]} {[%emt 00:01:04]} gxf3 {[%clk 00:01:29]}
{[%emt 00:00:33]} 23. Rxf3 {[%clk 00:05:31]} {[%emt 00:00:02]} Nf8 {[%clk
00:01:27]} {[%emt 00:00:06]} 24. Rf6 {[%clk 00:05:17]} {[%emt 00:00:19]} Qd7
{[%clk 00:01:19]} {[%emt 00:00:14]} 25. Rh6+ {[%clk 00:05:12]} {[%emt
00:00:09]} Kg7 {[%clk 00:01:24]} 26. Rxh5 {[%clk 00:04:56]} {[%emt 00:00:22]}
Nfg6 {[%clk 00:01:20]} {[%emt 00:00:09]} 27. Qc1 {[%clk 00:04:49]} {[%emt
00:00:12]} Kf8 {[%clk 00:01:03]} {[%emt 00:00:22]} 28. e6 {[%clk 00:04:42]}
{[%emt 00:00:11]} fxe6 {[%clk 00:00:59]} {[%emt 00:00:10]} 29. Ng4 {[%clk
00:04:41]} {[%emt 00:00:05]} Nf5 {[%clk 00:00:51]} {[%emt 00:00:14]} 30. Bxf5
{[%clk 00:04:34]} {[%emt 00:00:12]} exf5 {[%clk 00:00:54]} {[%emt 00:00:02]} 31.
Nf6 {[%clk 00:04:33]} {[%emt 00:00:05]} Qf7 {[%clk 00:00:52]} {[%emt 00:00:08]}
1-0

[Event "Vastgota Open 2023"]
[Site "Skara stadshotell, Jarnvagsgatan 5, Skara, Sweden"]
[Date "2023.02.18"]
[Round "1.2"]
[White "Andersson, Kjell-Ake"]
[Black "Miezis, Normunds"]
[Result "0-1"]
[TimeControl "15 minutes + 5 seconds per move from move one (Round 1 - 2) / 30 minutes + 10 seconds per move from move one (Round 3 - 9)"]
[BlackTitle "GM"]
[WhiteFideId "1713825"]
[BlackFideId "11600136"]
[WhiteElo "1840"]
[BlackElo "2502"]

1. Nf3 {[%clk 00:14:56]} {[%emt 00:00:14]} c5 {[%clk 00:15:05]} {[%emt
00:00:05]} 2. c4 {[%clk 00:14:33]} {[%emt 00:00:28]} Nc6 {[%clk 00:15:04]}
{[%emt 00:00:06]} 3. Nc3 {[%clk 00:14:30]} {[%emt 00:00:07]} g6 {[%clk
00:14:54]} {[%emt 00:00:16]} 4. g3 {[%clk 00:14:26]} {[%emt 00:00:09]} Bg7
{[%clk 00:14:54]} {[%emt 00:00:05]} 5. Bg2 {[%clk 00:14:27]} {[%emt 00:00:04]}
e5 {[%clk 00:14:42]} {[%emt 00:00:17]} 6. O-O {[%clk 00:14:10]} {[%emt
00:00:21]} Nge7 {[%clk 00:14:40]} {[%emt 00:00:07]} 7. d3 {[%clk 00:13:49]}
{[%emt 00:00:27]} d6 {[%clk 00:14:35]} {[%emt 00:00:10]} 8. Rb1 {[%clk
00:13:28]} {[%emt 00:00:26]} O-O {[%clk 00:14:27]} {[%emt 00:00:13]} 9. a3
{[%clk 00:13:26]} {[%emt 00:00:07]} a5 {[%clk 00:14:22]} {[%emt 00:00:10]} 10.
Bd2 {[%clk 00:12:51]} {[%emt 00:00:40]} h6 {[%clk 00:14:15]} {[%emt 00:00:12]}
11. Nb5 {[%clk 00:10:10]} {[%emt 00:02:47]} Kh7 {[%clk 00:13:37]} {[%emt
00:00:42]} 12. b4 {[%clk 00:09:36]} {[%emt 00:00:39]} axb4 {[%clk 00:13:35]}
{[%emt 00:00:07]} 13. axb4 {[%clk 00:09:38]} {[%emt 00:00:04]} cxb4 {[%clk
00:13:22]} {[%emt 00:00:17]} 14. Bxb4 {[%clk 00:09:24]} {[%emt 00:00:19]} Nxb4
{[%clk 00:13:22]} {[%emt 00:00:05]} 15. Rxb4 {[%clk 00:09:25]} {[%emt
00:00:04]} d5 {[%clk 00:13:16]} {[%emt 00:00:11]} 16. Qb1 {[%clk 00:05:40]}
{[%emt 00:03:50]} Nc6 {[%clk 00:12:39]} {[%emt 00:00:42]} 17. Rb3 {[%clk
00:04:44]} {[%emt 00:01:00]} e4 {[%clk 00:11:55]} {[%emt 00:00:50]} 18. Nd2
{[%clk 00:03:40]} {[%emt 00:01:09]} Ra1 {[%clk 00:10:28]} {[%emt 00:01:32]} 19.
Qc2 {[%clk 00:03:30]} {[%emt 00:00:14]} Rxf1+ {[%clk 00:10:15]} {[%emt
00:00:19]} 20. Nxf1 {[%clk 00:03:17]} {[%emt 00:00:18]} dxc4 {[%clk 00:09:30]}
{[%emt 00:00:49]} 21. dxc4 {[%clk 00:03:08]} {[%emt 00:00:15]} f5 {[%clk
00:09:29]} {[%emt 00:00:06]} 22. Ne3 {[%clk 00:02:52]} {[%emt 00:00:21]} Be6
{[%clk 00:09:29]} {[%emt 00:00:05]} 23. Rb1 {[%clk 00:02:38]} {[%emt 00:00:19]}
Rf7 {[%clk 00:09:03]} {[%emt 00:00:32]} 24. c5 {[%clk 00:01:36]} {[%emt
00:01:07]} Rd7 {[%clk 00:08:16]} {[%emt 00:00:51]} 25. Rd1 {[%clk 00:01:04]}
{[%emt 00:00:37]} Rxd1+ {[%clk 00:07:45]} {[%emt 00:00:36]} 26. Nxd1 {[%clk
00:01:03]} {[%emt 00:00:06]} Qa5 {[%clk 00:07:01]} {[%emt 00:00:50]} 27. Nbc3
{[%clk 00:00:24]} {[%emt 00:00:44]} Qxc5 {[%clk 00:06:53]} {[%emt 00:00:13]} 28.
Qd2 {[%clk 00:00:18]} {[%emt 00:00:11]} Qb4 {[%clk 00:06:53]} {[%emt 00:00:05]}
29. h3 {[%clk 00:00:14]} {[%emt 00:00:09]} Nd4 {[%clk 00:06:42]} {[%emt
00:00:16]} 30. Kh2 {[%clk 00:00:06]} {[%emt 00:00:13]} Nb3 {[%clk 00:06:29]}
{[%emt 00:00:17]} 0-1

[Event "Vastgota Open 2023"]
[Site "Skara stadshotell, Jarnvagsgatan 5, Skara, Sweden"]
[Date "2023.02.18"]
[Round "1.3"]
[White "Sivuk, Vitaly"]
[Black "Thornqvist, Christer"]
[Result "1-0"]
[TimeControl "15 minutes + 5 seconds per move from move one (Round 1 - 2) / 30 minutes + 10 seconds per move from move one (Round 3 - 9)"]
[WhiteTitle "GM"]
[WhiteFideId "14116502"]
[BlackFideId "1732250"]
[WhiteElo "2502"]
[BlackElo "1840"]

1. d4 {[%clk 00:15:06]} {[%emt 00:00:03]} Nf6 {[%clk 00:15:07]} {[%emt
00:00:04]} 2. c4 {[%clk 00:15:09]} {[%emt 00:00:02]} e6 {[%clk 00:15:09]}
{[%emt 00:00:02]} 3. Nf3 {[%clk 00:15:12]} {[%emt 00:00:02]} d5 {[%clk
00:15:12]} {[%emt 00:00:03]} 4. Nc3 {[%clk 00:15:15]} {[%emt 00:00:02]} c6
{[%clk 00:15:16]} {[%emt 00:00:01]} 5. Bg5 {[%clk 00:15:17]} {[%emt 00:00:03]}
dxc4 {[%clk 00:15:15]} {[%emt 00:00:06]} 6. e4 {[%clk 00:15:19]} {[%emt
00:00:02]} b5 {[%clk 00:15:19]} {[%emt 00:00:02]} 7. e5 {[%clk 00:15:22]}
{[%emt 00:00:02]} h6 {[%clk 00:15:23]} {[%emt 00:00:01]} 8. Bh4 {[%clk
00:15:24]} {[%emt 00:00:02]} g5 {[%clk 00:15:26]} {[%emt 00:00:02]} 9. Nxg5
{[%clk 00:15:27]} {[%emt 00:00:03]} hxg5 {[%clk 00:15:29]} {[%emt 00:00:02]} 10.
Bxg5 {[%clk 00:15:30]} Nbd7 {[%clk 00:15:28]} {[%emt 00:00:07]} 11. g3 {[%clk
00:15:30]} {[%emt 00:00:04]} Bb7 {[%clk 00:15:31]} {[%emt 00:00:03]} 12. Bg2
{[%clk 00:15:33]} {[%emt 00:00:02]} Qb6 {[%clk 00:15:31]} {[%emt 00:00:05]} 13.
exf6 {[%clk 00:15:35]} {[%emt 00:00:03]} O-O-O {[%clk 00:15:26]} {[%emt
00:00:10]} 14. O-O {[%clk 00:15:36]} {[%emt 00:00:03]} c5 {[%clk 00:15:21]}
{[%emt 00:00:11]} 15. d5 {[%clk 00:15:39]} {[%emt 00:00:02]} Qa6 {[%clk
00:14:37]} {[%emt 00:00:49]} 16. Qe2 {[%clk 00:14:24]} {[%emt 00:01:19]} b4
{[%clk 00:13:57]} {[%emt 00:00:47]} 17. dxe6 {[%clk 00:14:18]} {[%emt
00:00:10]} bxc3 {[%clk 00:12:53]} {[%emt 00:01:09]} 18. exd7+ {[%clk 00:13:52]}
{[%emt 00:00:31]} Rxd7 {[%clk 00:12:25]} {[%emt 00:00:32]} 19. bxc3 {[%clk
00:13:43]} {[%emt 00:00:14]} Bxg2 {[%clk 00:12:19]} {[%emt 00:00:11]} 20. Kxg2
{[%clk 00:13:46]} {[%emt 00:00:02]} Qc6+ {[%clk 00:12:22]} {[%emt 00:00:03]} 21.
Kg1 {[%clk 00:13:39]} {[%emt 00:00:11]} Qd5 {[%clk 00:11:43]} {[%emt 00:00:44]}
22. Rad1 {[%clk 00:12:36]} {[%emt 00:01:08]} Qxg5 {[%clk 00:11:16]} {[%emt
00:00:33]} 23. Qe8+ {[%clk 00:12:37]} {[%emt 00:00:04]} 1-0

[Event "Vastgota Open 2023"]
[Site "Skara stadshotell, Jarnvagsgatan 5, Skara, Sweden"]
[Date "2023.02.18"]
[Round "1.4"]
[White "Wiman, Kenneth"]
[Black "Seo, Jung Min"]
[Result "0-1"]
[TimeControl "15 minutes + 5 seconds per move from move one (Round 1 - 2) / 30 minutes + 10 seconds per move from move one (Round 3 - 9)"]
[BlackTitle "IM"]
[WhiteFideId "1707442"]
[BlackFideId "1734687"]
[WhiteElo "1823"]
[BlackElo "2448"]

1. d4 {[%clk 00:15:08]} {[%emt 00:00:02]} Nf6 {[%clk 00:15:09]} {[%emt
00:00:01]} 2. c4 {[%clk 00:15:06]} {[%emt 00:00:06]} e6 {[%clk 00:15:13]} 3.
Nc3 {[%clk 00:15:07]} {[%emt 00:00:04]} Bb4 {[%clk 00:15:17]} {[%emt 00:00:01]}
4. a3 {[%clk 00:14:52]} {[%emt 00:00:21]} Bxc3+ {[%clk 00:15:21]} {[%emt
00:00:01]} 5. bxc3 {[%clk 00:14:55]} {[%emt 00:00:02]} O-O {[%clk 00:14:59]}
{[%emt 00:00:27]} 6. f3 {[%clk 00:14:34]} {[%emt 00:00:25]} c5 {[%clk
00:14:43]} {[%emt 00:00:22]} 7. e3 {[%clk 00:13:56]} {[%emt 00:00:43]} b6
{[%clk 00:14:35]} {[%emt 00:00:13]} 8. Bd3 {[%clk 00:13:49]} {[%emt 00:00:12]}
Ba6 {[%clk 00:14:29]} {[%emt 00:00:11]} 9. Ne2 {[%clk 00:13:26]} {[%emt
00:00:28]} Nc6 {[%clk 00:14:32]} {[%emt 00:00:02]} 10. O-O {[%clk 00:13:01]}
{[%emt 00:00:30]} Na5 {[%clk 00:14:29]} {[%emt 00:00:08]} 11. Qa4 {[%clk
00:11:56]} {[%emt 00:01:11]} d5 {[%clk 00:14:25]} {[%emt 00:00:08]} 12. Ng3
{[%clk 00:10:16]} {[%emt 00:01:45]} Bxc4 {[%clk 00:14:25]} {[%emt 00:00:05]} 13.
Bxc4 {[%clk 00:09:51]} {[%emt 00:00:30]} Nxc4 {[%clk 00:14:29]} {[%emt
00:00:02]} 14. e4 {[%clk 00:09:37]} {[%emt 00:00:18]} cxd4 {[%clk 00:14:22]}
{[%emt 00:00:12]} 15. e5 {[%clk 00:09:10]} {[%emt 00:00:32]} Nxe5 {[%clk
00:14:21]} {[%emt 00:00:06]} 16. cxd4 {[%emt 00:00:37]} Nc4 {[%clk 00:14:19]}
{[%emt 00:00:05]} 17. Bf4 {[%clk 00:07:55]} {[%emt 00:00:50]} Qd7 {[%clk
00:14:19]} {[%emt 00:00:04]} 18. Qb4 {[%clk 00:07:32]} {[%emt 00:00:29]} h6
{[%clk 00:14:08]} {[%emt 00:00:14]} 19. Rfe1 {[%clk 00:07:10]} {[%emt
00:00:29]} Rac8 {[%clk 00:14:04]} {[%emt 00:00:09]} 20. Rad1 {[%clk 00:06:48]}
{[%emt 00:00:28]} Rfe8 {[%clk 00:13:55]} {[%emt 00:00:13]} 21. Nf1 {[%clk
00:06:30]} {[%emt 00:00:23]} Qe7 {[%clk 00:13:48]} {[%emt 00:00:10]} 22. Nd2
{[%clk 00:06:00]} {[%emt 00:00:36]} Qxb4 {[%clk 00:13:51]} {[%emt 00:00:03]} 23.
axb4 {[%clk 00:06:04]} {[%emt 00:00:02]} Nb2 {[%clk 00:13:51]} {[%emt
00:00:03]} 24. Ra1 {[%clk 00:05:35]} {[%emt 00:00:35]} Nd3 {[%clk 00:13:53]}
{[%emt 00:00:02]} 25. Bg3 {[%clk 00:05:03]} {[%emt 00:00:38]} Nxe1 {[%clk
00:13:57]} {[%emt 00:00:01]} 26. Bxe1 {[%clk 00:05:04]} {[%emt 00:00:04]} Rc7
{[%clk 00:13:56]} {[%emt 00:00:06]} 27. Bg3 {[%clk 00:05:02]} {[%emt 00:00:07]}
Rc2 {[%clk 00:13:57]} {[%emt 00:00:03]} 28. Nf1 {[%clk 00:04:59]} {[%emt
00:00:09]} Re7 {[%clk 00:13:58]} {[%emt 00:00:03]} 0-1

[Event "Vastgota Open 2023"]
[Site "Skara stadshotell, Jarnvagsgatan 5, Skara, Sweden"]
[Date "2023.02.18"]
[Round "1.5"]
[White "Cramling, Pia"]
[Black "Holmgren, Peter"]
[Result "1-0"]
[TimeControl "15 minutes + 5 seconds per move from move one (Round 1 - 2) / 30 minutes + 10 seconds per move from move one (Round 3 - 9)"]
[WhiteTitle "GM"]
[WhiteFideId "1700030"]
[BlackFideId "1713906"]
[WhiteElo "2429"]
[BlackElo "1807"]

1. d4 {[%clk 00:15:08]} {[%emt 00:00:01]} d5 {[%clk 00:15:05]} {[%emt
00:00:05]} 2. c4 {[%clk 00:15:09]} {[%emt 00:00:04]} c6 {[%clk 00:15:07]}
{[%emt 00:00:03]} 3. Nf3 {[%clk 00:15:12]} {[%emt 00:00:02]} Nf6 {[%clk
00:15:03]} {[%emt 00:00:09]} 4. Qc2 {[%clk 00:15:12]} {[%emt 00:00:05]} g6
{[%clk 00:14:06]} {[%emt 00:01:02]} 5. cxd5 {[%clk 00:15:07]} {[%emt 00:00:10]}
Bf5 {[%clk 00:13:34]} {[%emt 00:00:37]} 6. Qb3 {[%clk 00:15:01]} {[%emt
00:00:10]} Bxb1 {[%clk 00:13:30]} {[%emt 00:00:11]} 7. Rxb1 {[%clk 00:14:52]}
{[%emt 00:00:14]} cxd5 {[%clk 00:11:23]} {[%emt 00:02:12]} 8. Qxb7 {[%clk
00:14:10]} {[%emt 00:00:47]} Nbd7 {[%clk 00:11:13]} {[%emt 00:00:15]} 9. e3
{[%clk 00:12:54]} {[%emt 00:01:20]} Bg7 {[%clk 00:10:46]} {[%emt 00:00:33]} 10.
Bd3 {[%clk 00:12:36]} {[%emt 00:00:21]} O-O {[%clk 00:10:24]} {[%emt 00:00:28]}
11. O-O {[%clk 00:12:17]} {[%emt 00:00:24]} e6 {[%clk 00:08:47]} {[%emt
00:01:42]} 12. Bd2 {[%clk 00:12:07]} {[%emt 00:00:15]} Re8 {[%clk 00:08:05]}
{[%emt 00:00:48]} 13. Rfc1 {[%clk 00:11:50]} {[%emt 00:00:20]} Bf8 {[%clk
00:07:30]} {[%emt 00:00:42]} 14. Qa6 {[%clk 00:11:22]} {[%emt 00:00:33]} Ng4
{[%clk 00:06:23]} {[%emt 00:01:12]} 15. h3 {[%clk 00:10:53]} {[%emt 00:00:33]}
Nh6 {[%clk 00:05:55]} {[%emt 00:00:33]} 16. Bb5 {[%clk 00:10:31]} {[%emt
00:00:27]} Rb8 {[%clk 00:04:45]} {[%emt 00:01:15]} 17. Ba5 {[%clk 00:10:05]}
{[%emt 00:00:30]} Qe7 {[%clk 00:03:37]} {[%emt 00:01:15]} 18. Rc7 {[%clk
00:09:56]} {[%emt 00:00:12]} Rbd8 {[%clk 00:01:16]} {[%emt 00:02:28]} 19. Qc6
{[%clk 00:09:39]} {[%emt 00:00:22]} Nb8 {[%clk 00:01:04]} {[%emt 00:00:17]} 20.
Rxe7 {[%clk 00:09:32]} {[%emt 00:00:11]} Nxc6 {[%clk 00:01:00]} {[%emt
00:00:10]} 21. Rxe8 {[%clk 00:09:29]} {[%emt 00:00:07]} Rxe8 {[%clk 00:00:58]}
{[%emt 00:00:08]} 22. Bxc6 {[%clk 00:09:30]} {[%emt 00:00:03]} Rc8 {[%clk
00:00:50]} {[%emt 00:00:14]} 23. Bb5 {[%clk 00:09:20]} {[%emt 00:00:13]} Bd6
{[%clk 00:00:24]} {[%emt 00:00:33]} 24. Bd3 {[%clk 00:08:51]} {[%emt 00:00:33]}
f6 {[%clk 00:00:24]} {[%emt 00:00:06]} 25. Ba6 {[%clk 00:08:26]} {[%emt
00:00:29]} Rc6 {[%clk 00:00:25]} {[%emt 00:00:04]} 26. Bb5 {[%clk 00:08:28]}
{[%emt 00:00:03]} Rc8 {[%clk 00:00:21]} {[%emt 00:00:11]} 27. Bd7 {[%clk
00:08:25]} {[%emt 00:00:06]} 1-0

[Event "Vastgota Open 2023"]
[Site "Skara stadshotell, Jarnvagsgatan 5, Skara, Sweden"]
[Date "2023.02.18"]
[Round "1.6"]
[White "Johansson, Eva"]
[Black "Galperin, Platon"]
[Result "0-1"]
[TimeControl "15 minutes + 5 seconds per move from move one (Round 1 - 2) / 30 minutes + 10 seconds per move from move one (Round 3 - 9)"]
[BlackTitle "GM"]
[WhiteFideId "1724584"]
[BlackFideId "14165414"]
[WhiteElo "1805"]
[BlackElo "2429"]

1. d4 {[%clk 00:15:06]} {[%emt 00:00:03]} Nf6 {[%clk 00:15:07]} {[%emt
00:00:03]} 2. c4 {[%clk 00:15:01]} {[%emt 00:00:09]} g6 {[%clk 00:15:09]}
{[%emt 00:00:04]} 3. Nf3 {[%clk 00:14:51]} {[%emt 00:00:14]} Bg7 {[%clk
00:15:12]} {[%emt 00:00:03]} 4. g3 {[%clk 00:14:34]} {[%emt 00:00:22]} O-O
{[%clk 00:15:12]} {[%emt 00:00:05]} 5. Bg2 {[%clk 00:14:34]} {[%emt 00:00:05]}
d6 {[%clk 00:15:15]} {[%emt 00:00:02]} 6. O-O {[%clk 00:14:18]} {[%emt
00:00:22]} Re8 {[%clk 00:15:17]} {[%emt 00:00:03]} 7. Nc3 {[%clk 00:13:44]}
{[%emt 00:00:38]} Bd7 {[%clk 00:15:19]} {[%emt 00:00:03]} 8. h3 {[%clk
00:11:58]} {[%emt 00:01:51]} e5 {[%clk 00:15:20]} {[%emt 00:00:04]} 9. d5
{[%clk 00:10:08]} {[%emt 00:01:54]} a5 {[%clk 00:14:05]} {[%emt 00:01:21]} 10.
b3 {[%clk 00:08:47]} {[%emt 00:01:26]} e4 {[%clk 00:13:54]} {[%emt 00:00:16]}
11. Nd4 {[%clk 00:08:47]} {[%emt 00:00:05]} Na6 {[%clk 00:13:39]} {[%emt
00:00:21]} 12. Bb2 {[%clk 00:08:10]} {[%emt 00:00:42]} e3 {[%clk 00:13:32]}
{[%emt 00:00:12]} 13. f4 {[%clk 00:06:35]} {[%emt 00:01:39]} Nc5 {[%clk
00:13:31]} {[%emt 00:00:06]} 14. Kh2 {[%clk 00:05:13]} {[%emt 00:01:27]} h5
{[%clk 00:13:05]} {[%emt 00:00:31]} 15. f5 {[%clk 00:03:39]} {[%emt 00:01:40]}
Nh7 {[%clk 00:12:20]} {[%emt 00:00:50]} 16. fxg6 {[%clk 00:02:58]} {[%emt
00:00:47]} fxg6 {[%clk 00:12:22]} {[%emt 00:00:02]} 17. Ne6 {[%clk 00:02:36]}
{[%emt 00:00:27]} Nxe6 {[%clk 00:12:17]} {[%emt 00:00:10]} 18. dxe6 {[%clk
00:02:39]} Bxe6 {[%clk 00:12:20]} {[%emt 00:00:03]} 19. Bxb7 {[%clk 00:02:42]}
{[%emt 00:00:02]} Be5 {[%clk 00:11:15]} {[%emt 00:01:09]} 20. Bd5 {[%clk
00:02:16]} {[%emt 00:00:31]} Qh4 {[%clk 00:11:12]} {[%emt 00:00:07]} 21. Bxe6+
{[%clk 00:02:07]} {[%emt 00:00:15]} Rxe6 {[%clk 00:11:13]} {[%emt 00:00:05]} 22.
Rf3 {[%clk 00:01:55]} {[%emt 00:00:16]} Ng5 {[%clk 00:11:14]} 0-1

[Event "Vastgota Open 2023"]
[Site "Skara stadshotell, Jarnvagsgatan 5, Skara, Sweden"]
[Date "2023.02.18"]
[Round "1.7"]
[White "Golubka, Petro"]
[Black "Eriksson, Magnus"]
[Result "1-0"]
[TimeControl "15 minutes + 5 seconds per move from move one (Round 1 - 2) / 30 minutes + 10 seconds per move from move one (Round 3 - 9)"]
[WhiteTitle "GM"]
[WhiteFideId "14114224"]
[BlackFideId "1709941"]
[WhiteElo "2407"]
[BlackElo "1801"]

1. e4 {[%clk 00:15:06]} {[%emt 00:00:02]} c5 {[%clk 00:15:08]} {[%emt
00:00:04]} 2. b3 {[%clk 00:15:08]} {[%emt 00:00:03]} Nf6 {[%clk 00:14:48]}
{[%emt 00:00:24]} 3. e5 {[%clk 00:15:10]} {[%emt 00:00:04]} Nd5 {[%clk
00:14:45]} {[%emt 00:00:07]} 4. Qf3 {[%clk 00:14:59]} {[%emt 00:00:17]} e6
{[%clk 00:14:30]} {[%emt 00:00:19]} 5. Bb2 {[%clk 00:14:57]} {[%emt 00:00:08]}
Nc6 {[%clk 00:14:19]} {[%emt 00:00:16]} 6. Bc4 {[%clk 00:14:55]} {[%emt
00:00:08]} Nb6 {[%clk 00:13:57]} {[%emt 00:00:26]} 7. Bb5 {[%clk 00:14:27]}
{[%emt 00:00:32]} Be7 {[%clk 00:12:27]} {[%emt 00:01:37]} 8. Bxc6 {[%clk
00:14:27]} {[%emt 00:00:05]} dxc6 {[%clk 00:12:29]} {[%emt 00:00:02]} 9. Qg3
{[%clk 00:14:18]} {[%emt 00:00:14]} O-O {[%clk 00:12:18]} {[%emt 00:00:15]} 10.
c4 {[%clk 00:13:51]} {[%emt 00:00:33]} Nd7 {[%clk 00:12:05]} {[%emt 00:00:18]}
11. Nf3 {[%clk 00:13:48]} {[%emt 00:00:08]} b5 {[%clk 00:12:03]} {[%emt
00:00:06]} 12. d3 {[%clk 00:13:48]} {[%emt 00:00:06]} f6 {[%clk 00:11:01]}
{[%emt 00:01:07]} 13. Nc3 {[%clk 00:13:10]} {[%emt 00:00:43]} b4 {[%clk
00:09:26]} {[%emt 00:01:40]} 14. Ne2 {[%clk 00:12:59]} {[%emt 00:00:16]} Nxe5
{[%clk 00:09:25]} {[%emt 00:00:06]} 15. Nxe5 {[%clk 00:12:45]} {[%emt
00:00:19]} fxe5 {[%clk 00:09:20]} {[%emt 00:00:10]} 16. Bxe5 {[%clk 00:12:09]}
{[%emt 00:00:42]} Bf6 {[%clk 00:09:21]} {[%emt 00:00:03]} 17. Rd1 {[%clk
00:11:46]} {[%emt 00:00:27]} Bxe5 {[%clk 00:09:08]} {[%emt 00:00:20]} 18. Qxe5
{[%clk 00:11:50]} Qf6 {[%clk 00:09:09]} {[%emt 00:00:03]} 19. Qxc5 {[%clk
00:10:54]} {[%emt 00:01:02]} e5 {[%clk 00:08:53]} {[%emt 00:00:21]} 20. O-O
{[%clk 00:10:41]} {[%emt 00:00:17]} a5 {[%clk 00:08:55]} {[%emt 00:00:03]} 21.
f3 {[%clk 00:10:16]} {[%emt 00:00:30]} Rd8 {[%clk 00:06:20]} {[%emt 00:02:40]}
22. d4 {[%clk 00:09:48]} {[%emt 00:00:33]} exd4 {[%clk 00:04:33]} {[%emt
00:01:52]} 23. Nxd4 {[%clk 00:09:25]} {[%emt 00:00:28]} Bd7 {[%clk 00:02:22]}
{[%emt 00:02:16]} 24. Rfe1 {[%clk 00:09:16]} {[%emt 00:00:14]} a4 {[%clk
00:01:32]} {[%emt 00:00:56]} 25. bxa4 {[%clk 00:08:55]} {[%emt 00:00:26]} 1-0